bitfinex/quotes_ETHUSD_20241204
["timestamp","ask_amount","ask_price","bid_price","bid_amount"]
[1733319882619,0.1,3708.6,3707.9,2.69694]
[1733319882822,0.1,3708.6,3708.1,2.69676]
[1733319883031,0.1,3708.6,3707.8,2.69701]
[1733319883032,0.1,3708.6,3708.2,2.6967]
[1733319883324,0.1,3708.6,3707.9,2.69689]
[1733319884339,0.1,3708.6,3707.9,2.69692]
[1733319884522,0.1,3708.6,3707.9,0.32361496]
[1733319884901,0.1,3708.6,3708.1,2.69673]
[1733319885096,0.1,3708.6,3708.2,2.69668]
[1733319885425,1.6083,3708.9,3708.5,2.6965]
[1733319885748,1.6083,3708.9,3708.3,0.02696402]
[1733319885749,1.557,3709.7,3709.2,2.69599]
[1733319886097,0.1,3709.5,3709.2,2.69599]
[1733319886548,0.1,3709.5,3709.0,2.69611]
[1733319886732,0.1,3709.4,3709.0,2.69611]
[1733319887211,0.1,3709.4,3708.5,0.52957156]
[1733319887411,0.1,3709.4,3708.8,2.69627]
[1733319887949,0.1,3709.4,3708.5,0.52957156]
[1733319887950,0.1,3709.4,3708.5,3.52957156]
[1733319888257,0.1,3709.4,3708.6,2.69641]
[1733319888615,0.1,3709.4,3708.7,0.02696008]
[1733319889015,0.1,3709.4,3708.7,2.72330008]
[1733319889243,0.1,3709.4,3708.7,0.02696008]
[1733319889443,1.557,3709.7,3708.5,0.52957156]
[1733319889444,1.557,3709.7,3708.5,3.55653126]
[1733319889611,1.5417,3710.1,3708.5,3.55653126]
[1733319889943,0.1,3709.8,3708.5,3.55653126]
[1733319890150,1.6417,3710.1,3708.5,3.55653126]
[1733319890300,0.1,3709.9,3709.5,2.69578]
[1733319890502,0.1,3709.9,3709.2,1.6579]
[1733319890805,0.1,3709.9,3709.2,4.35389]
[1733319891046,0.1,3709.9,3709.3,2.69589]
[1733319891250,0.1,3709.9,3709.4,0.435379]
[1733319891411,0.1,3709.9,3709.1,2.69606]
[1733319892216,0.1,3709.9,3709.1,2.69601]
[1733319892749,0.1,3709.9,3708.8,1.6278]
[1733319892945,0.1,3709.9,3709.0,2.69607]
[1733319893108,0.1,3709.9,3709.1,3.0]
[1733319893308,0.1,3709.9,3708.8,4.6278]
[1733319893629,0.1,3709.9,3709.2,2.69599]
[1733319894656,0.1,3709.9,3708.9,0.732409]
[1733319894835,0.1,3709.9,3709.1,3.0]
[1733319895022,0.1,3709.9,3709.1,2.696]
[1733319895204,0.1,3709.9,3708.9,0.732409]
[1733319895205,0.1,3709.9,3709.2,2.69598]
[1733319896828,0.1,3709.9,3709.3,2.69586]
[1733319897612,0.1,3709.9,3708.9,0.732409]
[1733319897858,0.1,3709.9,3708.9,3.428609]
[1733319898087,0.1,3709.9,3709.0,2.69613]
[1733319898247,0.533714,3709.9,3709.0,2.69613]
[1733319898585,0.1,3709.6,3709.0,2.69613]
[1733319898994,0.1,3709.6,3708.8,1.65475724]
[1733319899158,0.1,3710.0,3709.1,0.02695724]
[1733319899347,0.1,3710.0,3709.5,2.69576]
[1733319899640,0.1,3710.0,3709.4,2.69584]
[1733319899843,1.5417,3710.1,3709.5,2.69578]
[1733319900043,0.1,3709.9,3709.6,2.69564]
[1733319900278,0.1,3709.9,3709.4,0.269584]
[1733319900785,1.6417,3710.1,3709.7,2.69563]
[1733319901142,1.6417,3710.1,3709.4,0.269584]
[1733319901143,1.6417,3710.1,3709.5,2.69575]
[1733319901743,1.6417,3710.1,3709.4,0.269584]
[1733319901959,1.6799,3710.4,3709.9,2.69547]
[1733319902367,1.6799,3710.4,3709.5,0.02695376]
[1733319902690,1.7596,3710.8,3710.2,2.69526]
[1733319902841,1.7596,3710.8,3710.3,2.69517]
[1733319903297,2.04092997,3710.8,3710.3,2.69517]
[1733319903498,2.04092997,3710.8,3709.9,2.72243924]
[1733319903499,0.1,3710.7,3709.8,0.52906598]
[1733319903664,1.6596,3710.8,3709.8,0.52906598]
[1733319903665,0.1,3710.5,3709.9,2.69549]
[1733319903995,1.7596,3710.8,3710.1,2.69532]
[1733319904168,1.7596,3710.8,3709.8,0.74455258]
[1733319904394,1.7596,3710.8,3709.9,0.02694934]
[1733319904805,1.7596,3710.8,3710.0,2.69535]
[1733319905026,1.7596,3710.8,3709.8,0.74455258]
[1733319905027,0.1,3710.5,3709.8,0.74455258]
[1733319905177,0.1,3710.5,3709.8,0.52906598]
[1733319905372,0.1,3710.5,3709.6,3.0]
[1733319905603,4.24774,3710.4,3709.1,1.5823]
[1733319905808,0.1,3710.2,3709.5,2.69576]
[1733319906006,0.1,3710.2,3709.2,0.53980268]
[1733319906189,0.1,3710.2,3709.3,0.23916247]
[1733319906487,0.1,3710.2,3709.3,0.21221027]
[1733319906689,0.1,3710.2,3709.8,2.69554]
[1733319906932,0.1,3710.2,3709.9,0.02695197]
[1733319907084,2.01293125,3710.9,3709.9,1.5591]
[1733319907281,2.01293125,3710.9,3710.0,0.0269481]
[1733319907526,2.01293125,3710.9,3710.4,2.69508]
[1733319908240,0.28133125,3710.9,3710.8,2.69483]
[1733319908395,0.28133125,3710.9,3710.5,2.69499]
[1733319908601,0.28133125,3710.9,3709.7,3.0]
[1733319908602,0.28133125,3710.9,3709.7,5.69559]
[1733319908807,0.28133125,3710.9,3710.2,2.69524]
[1733319909128,0.1,3711.0,3710.2,2.69524]
[1733319909376,0.1,3711.0,3710.4,2.6951]
[1733319909667,0.1,3711.0,3710.5,0.02694775]
[1733319909870,0.1,3711.0,3710.0,0.74106]
[1733319910165,0.1,3710.9,3709.9,7.41047]
[1733319910474,1.6316,3711.2,3709.9,7.41047]
[1733319910475,0.1,3710.7,3709.9,2.85137]
[1733319910672,0.1,3710.7,3710.0,2.69541]
[1733319910881,0.1,3710.7,3709.9,0.15591]
[1733319911048,0.1,3710.7,3709.8,0.53766688]
[1733319911370,1.5204,3710.1,3709.3,2.90807027]
[1733319911574,1.5204,3710.1,3709.2,0.55190828]
[1733319911933,1.6204,3710.6,3709.2,0.55190828]
[1733319912134,1.5204,3710.6,3710.3,2.69518]
[1733319912449,0.1,3711.0,3709.7,2.69563]
[1733319912450,1.6204,3711.0,3709.7,2.69563]
[1733319912777,1.6204,3711.4,3710.8,2.69477]
[1733319913086,1.6204,3711.4,3710.3,0.02694502]
[1733319913247,1.6204,3711.4,3710.5,2.69501]
[1733319913448,4.31481,3711.4,3710.3,2.69519]
[1733319913677,0.1,3711.1,3710.2,3.0]
[1733319913979,1.6367,3711.0,3710.3,2.69517]
[1733319914183,1.6367,3711.0,3710.4,0.02694768]
[1733319914483,1.6367,3711.0,3710.2,2.69525]
[1733319914985,1.6367,3711.0,3710.1,0.53572487]
[1733319914986,0.1,3710.6,3710.1,0.53572487]
[1733319915188,0.17367,3710.9,3709.4,2.03999007]
[1733319915189,2.79518,3710.4,3709.4,1.6139]
[1733319915486,0.1,3710.0,3709.0,1.5852]
[1733319915684,1.6528,3709.9,3709.1,2.69604]
[1733319915972,0.1,3709.8,3709.1,2.69604]
[1733319916132,0.1,3709.8,3708.6,4.28156]
[1733319916133,0.1,3709.8,3708.8,3.22989929]
[1733319916334,0.1,3709.6,3708.6,2.69641]
[1733319916532,5.55157487,3710.5,3708.4,2.69657]
[1733319916533,0.1,3709.4,3708.4,2.69657]
[1733319916845,0.1,3709.4,3708.3,2.11224404]
[1733319916846,0.1,3709.4,3708.5,2.6965]
[1733319917090,0.1,3709.2,3708.5,2.6965]
[1733319917432,1.6528,3709.1,3708.1,2.69673]
[1733319917745,1.6528,3709.1,3708.1,0.428193]
[1733319918077,1.6528,3709.1,3708.3,2.69664]
[1733319918279,1.6528,3709.1,3708.1,3.124953]
[1733319918774,1.6528,3709.1,3708.2,2.6967]
[1733319918977,0.1,3708.9,3708.2,2.6967]
[1733319919649,0.1,3708.9,3708.1,0.428193]
[1733319919650,1.5497,3708.8,3707.7,2.69707]
[1733319919855,0.1,3708.5,3707.3,1.61636566]
[1733319920181,0.1,3708.5,3707.3,1.5894]
[1733319920579,0.1,3708.5,3707.4,2.6973]
[1733319920781,0.1,3708.2,3707.0,1.6072]
[1733319920982,0.1,3708.2,3707.2,2.69741]
[1733319920983,0.1,3707.9,3707.2,2.69741]
[1733319921493,1.5327,3707.8,3707.0,2.85831]
[1733319921700,1.5327,3707.8,3707.0,0.16072]
[1733319922055,1.6327,3707.8,3707.0,0.16072]
[1733319922257,1.6327,3707.8,3707.3,2.69737]
[1733319923081,1.5327,3707.8,3707.0,0.16072]
[1733319923400,1.6327,3707.8,3707.2,2.69743]
[1733319923703,1.6327,3707.8,3707.2,3.03824265]
[1733319923899,1.6327,3707.8,3707.2,0.34081265]
[1733319924104,1.6327,3707.8,3706.5,3.0]
[1733319924334,0.1,3707.6,3706.5,2.6979]
[1733319924469,0.1,3707.6,3706.7,3.0]
[1733319925004,0.1,3707.6,3706.7,0.57248349]
[1733319925201,0.1,3707.6,3706.8,0.02697492]
[1733319925411,1.5327,3707.8,3706.7,2.69781]
[1733319925591,0.1,3708.1,3706.7,2.69781]
[1733319925592,1.5348,3708.2,3707.0,2.69759]
[1733319925793,1.5348,3708.6,3708.1,2.69679]
[1733319926104,1.6348,3708.6,3708.1,2.69679]
[1733319926258,1.6348,3708.6,3707.4,3.0]
[1733319926458,0.1,3708.3,3707.7,2.69708]
[1733319927705,0.1,3708.3,3707.7,2.69706]
[1733319927907,0.1,3708.3,3707.5,3.23904832]
[1733319928063,1.5443,3707.9,3707.5,2.69722]
[1733319928520,1.5443,3707.9,3707.3,2.69736]
[1733319928664,1.5443,3707.9,3707.3,0.62319946]
[1733319928868,1.6443,3707.9,3707.1,0.53463464]
[1733319929073,1.6443,3707.9,3707.4,2.69723]
[1733319929373,1.6443,3707.9,3707.3,2.69737]
[1733319929591,1.6443,3707.9,3707.1,0.53463464]
[1733319929792,1.6443,3707.9,3707.6,2.69714]
[1733319929973,1.5443,3707.9,3707.7,2.69702]
[1733319930381,1.6587,3708.4,3707.4,0.0269691]
[1733319930707,3.0,3708.9,3707.5,4.23839753]
[1733319930708,1.6587,3708.8,3707.5,4.23839753]
[1733319930910,1.6587,3708.8,3708.4,2.69657]
[1733319931218,0.1,3708.6,3707.9,2.6969]
[1733319931378,0.1,3708.6,3707.1,0.53463464]
[1733319931379,0.1,3708.6,3707.7,2.69708]
[1733319931577,0.1,3708.2,3707.7,2.69708]
[1733319931904,0.1,3708.2,3707.6,2.69715]
[1733319932415,1.5478,3708.5,3707.4,2.69729]
[1733319932617,1.5478,3708.5,3707.7,0.02696834]
[1733319932918,1.6478,3708.5,3708.2,2.6967]
[1733319933671,1.6478,3708.5,3708.3,2.69664]
[1733319933982,1.5478,3708.5,3708.3,2.69664]
[1733319934611,1.6478,3708.5,3708.3,2.69664]
[1733319935187,1.5262,3708.9,3707.9,1.5508]
[1733319935393,0.1,3708.6,3708.0,0.42747242]
[1733319935724,0.1,3709.3,3708.6,2.69638]
[1733319936012,0.1,3709.3,3708.0,3.42747242]
[1733319936013,1.5582,3709.5,3708.8,2.69628]
[1733319936213,1.5582,3709.5,3708.9,0.02695801]
[1733319936510,0.27955565,3709.6,3709.5,2.69578]
[1733319936711,0.27955565,3709.6,3709.5,7.873452]
[1733319936911,1.5582,3710.6,3709.6,2.6957]
[1733319937081,1.83849201,3711.0,3709.7,3.02694962]
[1733319937283,1.5582,3711.4,3710.3,1.6385]
[1733319937490,0.1,3711.2,3710.5,2.695]
[1733319937819,0.1,3711.2,3710.5,0.43335]
[1733319938166,0.1,3711.2,3710.7,2.6949]
[1733319938611,0.1,3711.2,3710.2,2.69521]
[1733319938815,0.1,3711.2,3710.5,2.69498]
[1733319939183,0.1,3711.2,3710.0,3.0]
[1733319939184,0.1,3711.2,3710.8,2.69481]
[1733319939580,0.1,3711.2,3710.3,2.69514]
[1733319939581,1.5582,3711.4,3711.3,2.69447]
[1733319940030,1.501,3711.9,3711.4,2.69437]
[1733319940199,1.501,3711.9,3710.9,2.69471]
[1733319940200,1.501,3711.9,3711.5,2.69432]
[1733319940697,1.501,3711.9,3710.9,2.69471]
[1733319940698,0.1,3711.5,3710.9,2.69471]
[1733319940900,0.1,3711.5,3710.9,2.69472]
[1733319942204,0.1,3711.5,3710.8,2.69482]
[1733319942738,0.1,3711.5,3710.5,0.02694389]
[1733319942944,1.6027,3710.3,3708.9,5.39242]
[1733319943175,8.84,3710.9,3708.9,5.39242]
[1733319943176,1.6027,3710.6,3709.5,1.6361]
[1733319943313,1.6027,3711.1,3710.6,2.69497]
[1733319943506,1.6027,3711.1,3709.7,2.69563]
[1733319943507,1.6027,3711.1,3709.8,0.02694629]
[1733319943754,1.6027,3711.1,3710.9,2.69475]
[1733319943966,1.6027,3711.1,3711.0,2.69469]
[1733319944273,1.524,3711.7,3711.6,2.69425]
[1733319944431,0.1,3711.8,3711.6,2.69425]
[1733319944968,1.6551,3712.5,3711.6,2.69425]
[1733319945459,0.1,3712.1,3711.6,2.69425]
[1733319945628,0.1,3712.1,3711.5,2.69429]
[1733319945812,0.1,3712.1,3711.2,3.02693949]
[1733319946014,0.1,3712.1,3711.5,2.69429]
[1733319946325,0.1,3712.1,3711.6,2.69424]
[1733319947261,0.1,3712.1,3711.3,0.57214995]
[1733319947410,0.1,3712.1,3711.4,2.69439]
[1733319948027,0.1,3712.1,3711.3,0.57214995]
[1733319948028,0.1,3712.1,3711.5,2.69432]
[1733319948229,1.6551,3712.5,3711.6,0.3535862]
[1733319948230,0.1,3712.3,3711.6,0.3535862]
[1733319948566,0.1,3712.3,3711.3,0.57214995]
[1733319948567,0.1,3712.3,3711.7,2.69411]
[1733319948712,0.1,3712.1,3711.2,4.33373]
[1733319948913,0.1,3712.3,3711.8,2.69408]
[1733319949111,0.1,3712.3,3711.3,2.69447]
[1733319949367,0.1,3712.1,3711.4,0.02693688]
[1733319949529,0.1,3712.1,3711.6,2.69425]
[1733319949727,0.1,3712.1,3711.5,3.15727763]
[1733319950045,0.1,3712.1,3711.9,2.69396]
[1733319950414,0.1,3712.1,3711.5,3.13033069]
[1733319950635,1.7353,3712.1,3711.5,3.13038069]
[1733319950840,1.7353,3712.1,3711.5,2.69426]
[1733319951053,1.7353,3712.1,3710.6,3.0]
[1733319951054,1.7353,3712.1,3711.7,2.69415]
[1733319951289,0.1,3712.1,3711.9,2.69402]
[1733319951640,0.1,3712.1,3711.4,2.69434]
[1733319951641,1.6353,3712.5,3711.4,0.02693691]
[1733319951871,1.6353,3712.5,3712.0,2.69391]
[1733319952133,1.6353,3712.5,3711.6,2.69425]
[1733319952334,1.6353,3712.5,3712.0,2.69393]
[1733319952781,1.6353,3712.5,3711.7,0.269425]
[1733319952937,1.6353,3712.5,3712.1,2.69386]
[1733319953138,1.6353,3712.5,3711.7,0.269425]
[1733319953485,0.1,3712.2,3711.7,2.963585]
[1733319953689,1.6353,3712.5,3711.7,0.269425]
[1733319953835,1.6353,3712.5,3711.8,0.02693562]
[1733319954179,1.6353,3712.5,3712.0,2.69394]
[1733319954465,1.6353,3712.5,3712.1,2.69388]
[1733319954624,1.6353,3712.5,3712.3,2.69374]
[1733319954770,1.6353,3712.5,3711.8,4.20487]
[1733319954771,1.6852,3712.9,3712.0,2.69396]
[1733319954975,0.1,3712.8,3712.4,2.69363]
[1733319955175,1.5852,3712.9,3712.5,2.69357]
[1733319955404,1.5852,3712.9,3712.6,2.69352]
[1733319956102,0.1,3712.8,3712.6,2.69352]
[1733319956508,0.1,3712.8,3712.4,2.69365]
[1733319956721,0.1,3712.8,3712.4,2.69367]
[1733319956878,0.1,3712.8,3712.1,0.42316953]
[1733319957223,0.1,3712.8,3711.8,2.05547575]
[1733319957685,0.28014572,3713.0,3712.6,1.6465]
[1733319957877,0.28014572,3713.0,3712.9,5.69331]
[1733319958115,0.28014572,3713.0,3712.9,5.72023542]
[1733319958422,0.1,3713.9,3713.0,3.0]
[1733319958574,1.569,3714.0,3713.6,2.6928]
[1733319958773,0.1,3713.9,3713.1,0.6]
[1733319958977,0.1,3713.9,3713.3,2.693]
[1733319959174,0.1,3713.9,3713.1,3.6]
[1733319959175,0.1,3713.9,3713.5,2.69285]
[1733319960027,0.1,3713.9,3713.5,2.69287]
[1733319960333,0.1,3713.9,3713.3,2.69298]
[1733319960632,0.1,3713.9,3713.3,0.329298]
[1733319960832,0.1,3713.9,3712.9,0.54171472]
[1733319961033,1.6624,3713.8,3713.1,3.0]
[1733319961337,1.6624,3713.8,3712.9,3.0]
[1733319961505,1.6624,3713.8,3713.0,0.02692728]
[1733319961704,0.1,3713.9,3713.3,2.69297]
[1733319961904,1.5271,3714.2,3713.6,2.69274]
[1733319962103,0.1,3713.9,3713.4,3.113857]
[1733319962341,0.1,3713.9,3713.4,0.420937]
[1733319962490,0.1,3713.9,3712.7,3.0]
[1733319962491,1.5855,3713.4,3712.6,3.52953288]
[1733319962696,0.1,3713.5,3713.2,2.69308]
[1733319962995,1.5855,3713.8,3713.2,2.69308]
[1733319963206,0.1,3713.5,3713.2,2.69308]
[1733319963410,1.5855,3713.8,3713.2,2.69308]
[1733319963607,0.1,3713.5,3712.6,0.52953288]
[1733319963820,0.1,3713.5,3712.8,2.69338]
[1733319965003,0.1,3713.5,3712.5,3.0]
[1733319965004,4.34686,3713.4,3712.5,3.0]
[1733319965328,0.1,3713.1,3712.2,2.69375]
[1733319965487,0.1,3713.1,3712.0,4.6576]
[1733319965488,0.1,3712.7,3711.9,2.69402]
[1733319966320,0.1,3712.7,3712.1,2.69388]
[1733319966529,1.6539,3713.0,3712.3,2.69374]
[1733319966708,1.6539,3713.0,3712.2,2.99012007]
[1733319967036,1.6539,3713.0,3712.5,2.69359]
[1733319967498,3.0,3714.0,3712.2,0.269388]
[1733319967499,1.5367,3713.4,3712.6,0.02693139]
[1733319967694,0.1,3713.8,3712.3,1.6027]
[1733319967695,1.6367,3713.8,3712.7,2.69345]
[1733319967943,1.6367,3713.8,3713.1,2.69311]
[1733319968240,1.6367,3713.8,3712.8,0.269345]
[1733319968241,1.6367,3713.8,3712.9,1.6027]
[1733319968396,0.1,3714.1,3713.4,2.6929]
[1733319968750,0.1,3714.1,3713.2,2.69307]
[1733319968955,0.1,3713.9,3712.9,1.6027]
[1733319969153,2.69266,3713.8,3713.0,0.1872045]
[1733319969506,1.5667,3713.7,3713.1,0.52912105]
[1733319969656,1.5667,3713.7,3712.4,1.5838]
[1733319969657,0.1,3712.5,3711.5,1.5718]
[1733319969873,0.1,3712.3,3711.5,1.5718]
[1733319970010,4.22847,3712.4,3711.3,0.53731278]
[1733319970011,0.1,3712.1,3711.3,0.53731278]
[1733319970210,0.1,3712.1,3710.5,1.59873747]
[1733319970211,0.1,3712.1,3711.2,2.69448]
[1733319970511,1.5348,3712.4,3711.3,1.93488568]
[1733319970717,1.5866,3712.8,3711.3,1.93488568]
[1733319970919,0.1,3712.5,3711.8,2.69404]
[1733319971136,1.5866,3712.8,3711.3,1.907948]
[1733319971542,1.5866,3712.8,3711.5,3.0]
[1733319971745,1.5866,3712.8,3712.1,2.69386]
[1733319972132,1.5866,3712.8,3711.8,0.54943869]
[1733319972469,1.5866,3712.8,3711.9,3.0]
[1733319972662,1.5866,3712.8,3711.8,0.54943869]
[1733319972808,1.5866,3712.8,3712.0,3.0]
[1733319973012,1.5866,3712.8,3712.0,0.62435487]
[1733319973251,1.5866,3712.8,3711.8,3.0]
[1733319973588,1.5866,3712.8,3712.0,5.69396]
[1733319974080,1.5866,3712.8,3712.1,2.69387]
[1733319974847,1.5866,3712.8,3712.2,2.69377]
[1733319975388,1.5866,3712.8,3711.8,5.6941]
[1733319975389,1.5866,3712.8,3712.1,3.0]
[1733319975711,2.69286,3713.6,3711.6,1.30352696]
[1733319975712,0.1,3712.3,3711.6,0.76292817]
[1733319975995,0.1,3712.3,3711.2,2.69452]
[1733319976143,0.1,3712.1,3711.2,2.69452]
[1733319976343,1.6258,3712.0,3710.9,2.6947]
[1733319976583,1.6258,3712.0,3710.1,2.69531]
[1733319976584,1.6258,3711.5,3710.5,2.69503]
[1733319976751,1.6258,3711.5,3710.3,1.5505]
[1733319976752,1.6258,3711.5,3710.6,0.424553]
[1733319976954,1.6258,3711.5,3710.3,1.57744336]
[1733319977153,1.6258,3711.5,3710.8,2.69483]
[1733319977555,1.6258,3711.5,3710.5,2.69505]
[1733319977757,1.6258,3711.5,3710.7,0.53505051]
[1733319977951,1.6258,3711.5,3710.9,2.6947]
[1733319978144,1.6258,3711.5,3710.7,0.53505051]
[1733319978356,1.6258,3711.5,3710.8,3.0]
[1733319978573,1.6258,3711.5,3710.8,5.69483]
[1733319979298,1.6258,3711.5,3710.8,3.0]
[1733319979597,1.6258,3711.5,3710.7,3.88855556]
[1733319980090,1.6258,3711.5,3710.7,3.35350505]
[1733319980293,0.1,3710.9,3710.2,2.69526]
[1733319980589,0.1,3710.7,3709.9,2.69548]
[1733319980808,0.1,3710.7,3709.5,1.5834]
[1733319980947,0.1,3710.7,3710.3,2.69519]
[1733319981292,1.5824,3711.2,3710.8,2.69477]
[1733319981500,1.5977,3711.9,3711.1,2.69461]
[1733319981702,1.5977,3711.9,3711.5,2.6943]
[1733319981849,1.5977,3711.9,3711.0,1.6565]
[1733319982054,1.6977,3711.9,3711.5,2.69428]
[1733319982254,1.6977,3711.9,3711.3,2.69447]
[1733319982450,1.6977,3711.9,3711.0,3.0]
[1733319982850,1.6977,3711.9,3710.9,2.69475]
[1733319982851,1.6977,3711.9,3710.9,2.69476]
[1733319983196,1.6977,3711.9,3710.9,0.0269419]
[1733319983490,1.6977,3711.9,3710.9,3.0]
[1733319983695,1.6977,3711.9,3710.9,5.69476]
[1733319983993,4.39174,3711.9,3710.8,3.269477]
[1733319984197,4.39174,3711.9,3710.9,0.5964367]
[1733319984395,0.1,3711.5,3710.9,0.5964367]
[1733319984563,0.1,3711.5,3710.8,2.964297]
[1733319984909,0.1,3711.5,3710.8,0.269477]
[1733319985209,1.5488,3711.4,3710.8,0.269477]
[1733319985955,0.1,3711.3,3710.5,0.54166295]
[1733319986290,3.28130935,3712.3,3709.7,3.18001137]
[1733319986291,0.1,3710.6,3709.7,3.18001137]
[1733319986601,0.1,3710.6,3709.9,2.69542]
[1733319986902,1.6418,3710.5,3709.9,2.69542]
[1733319987107,1.6418,3710.5,3709.6,1.6555]
[1733319987270,1.6418,3710.5,3709.3,3.18001137]
[1733319987482,0.1,3710.2,3709.7,2.69561]
[1733319987890,0.1,3710.2,3708.9,1.6555]
[1733319987891,0.1,3710.2,3709.4,2.69578]
[1733319988201,0.1,3709.9,3709.6,2.69569]
[1733319988513,1.6418,3710.1,3709.6,2.69569]
[1733319988673,0.1,3709.9,3709.4,2.69579]
[1733319988868,0.1,3709.9,3708.9,7.53167137]
[1733319989052,0.1,3709.9,3709.3,2.69592]
[1733319989256,0.1,3709.9,3709.0,0.75316714]
[1733319989493,0.1,3709.9,3709.1,3.0]
[1733319989682,0.1,3709.9,3709.4,2.69584]
[1733319990465,0.1,3709.9,3709.0,3.75316714]
[1733319990669,0.1,3709.9,3709.1,0.91294785]
[1733319991091,0.1,3709.9,3709.4,2.69584]
[1733319991297,0.1,3709.9,3709.1,0.91294785]
[1733319991456,0.1,3709.9,3709.2,0.02695685]
[1733319991675,0.1,3709.9,3709.1,3.60895785]
[1733319991871,0.1,3709.9,3709.4,2.69582]
[1733319992072,1.5636,3710.1,3709.5,0.02695381]
[1733319992307,1.6122,3710.4,3710.3,2.69517]
[1733319992514,1.6122,3710.4,3709.8,2.69556]
[1733319992810,0.1,3710.1,3709.8,2.69554]
[1733319993358,0.1,3710.1,3709.8,2.965094]
[1733319994002,1.7122,3710.4,3709.9,2.69548]
[1733319994169,1.6122,3710.4,3709.9,2.69548]
[1733319994369,1.6122,3710.4,3710.0,2.69535]
[1733319994713,3.0,3711.0,3710.1,0.02695162]
[1733319994714,1.6517,3710.9,3710.1,0.02695162]
[1733319994892,1.6517,3710.9,3710.1,0.02694866]
[1733319995206,1.6517,3710.9,3710.8,2.69483]
[1733319995405,1.6517,3710.9,3710.8,2.964313]
[1733319995608,1.7517,3711.2,3710.9,2.6947]
[1733319995821,1.6517,3711.2,3711.1,2.69461]
[1733319995977,0.1,3711.5,3711.0,0.02694519]
[1733319996300,1.6229,3711.6,3711.3,2.69445]
[1733319996503,1.6229,3711.6,3711.2,2.69447]
[1733319996720,1.6229,3711.6,3711.2,2.963917]
[1733319996886,1.6229,3711.6,3711.2,0.269447]
[1733319997212,1.6229,3711.6,3710.3,1.5791]
[1733319997426,1.7229,3711.6,3711.1,2.6946]
[1733319997588,1.7229,3711.6,3710.3,2.69519]
[1733319997589,1.7229,3711.6,3711.3,2.69446]
[1733319997771,1.7229,3711.6,3710.8,2.69478]
[1733319997972,1.7229,3711.6,3710.6,3.0]
[1733319997973,1.7229,3711.6,3710.9,0.569478]
[1733319998204,1.6229,3711.6,3710.9,0.569478]
[1733319998388,1.7229,3711.6,3711.1,2.69461]
[1733319998611,1.7229,3711.6,3710.9,0.569478]
[1733319998793,1.7229,3711.6,3711.0,2.69462]
[1733319998980,1.7229,3711.6,3710.6,3.0]
[1733319999307,0.1,3711.3,3710.7,0.61800114]
[1733319999560,0.1,3711.3,3711.0,2.69467]
[1733319999878,0.1,3711.3,3710.2,3.0]
[1733320000114,0.1,3711.3,3710.4,3.0]
[1733320000315,0.1,3711.3,3710.2,3.0]
[1733320000619,0.1,3711.3,3710.6,2.69494]
[1733320000780,0.1,3711.3,3710.7,0.269494]
[1733320000983,0.1,3711.3,3710.6,0.02694362]
[1733320000984,0.1,3711.3,3711.2,2.69454]
[1733320001934,0.1,3711.3,3710.8,2.69479]
[1733320001935,1.6229,3711.6,3711.5,2.69432]
[1733320002247,0.28134168,3712.7,3711.5,5.69432]
[1733320002248,1.6017,3712.2,3711.5,5.69432]
[1733320002442,1.6017,3712.2,3711.9,2.69401]
[1733320002582,1.6017,3712.2,3711.6,2.69425]
[1733320002773,1.6017,3712.2,3711.6,1.15685214]
[1733320002978,1.6017,3712.2,3711.9,2.69399]
[1733320003592,1.5017,3712.2,3711.6,1.15685214]
[1733320003847,1.5017,3712.6,3712.4,2.69366]
[1733320004024,0.28134168,3712.7,3711.7,3.18001137]
[1733320004025,0.28134168,3712.7,3712.0,3.0]
[1733320004342,0.28134168,3712.7,3712.6,2.69353]
[1733320009340,0.28134168,3712.7,3712.6,5.72045873]
[1733320009517,0.28134168,3712.7,3712.6,5.69353]
[1733320009837,0.1,3714.0,3712.6,3.0]
[1733320010041,1.5075,3714.1,3713.6,2.69273]
[1733320010701,0.1,3713.8,3713.0,3.0]
[1733320010927,0.1,3713.8,3713.5,2.69285]
[1733320011178,0.1,3713.8,3713.0,3.3]
[1733320011179,1.5075,3714.1,3713.6,2.69273]
[1733320011326,0.1,3713.8,3713.6,2.69273]
[1733320011938,0.1,3713.8,3713.0,3.3]
[1733320012140,0.1,3713.8,3713.0,3.85044437]
[1733320012326,0.1,3713.8,3713.4,2.69294]
[1733320012533,0.1,3713.8,3713.1,0.97237057]
[1733320012765,0.1,3713.8,3713.3,2.69299]
[1733320013071,0.1,3713.8,3713.1,0.97237057]
[1733320013640,1.615,3713.7,3713.1,0.97237057]
[1733320013840,1.615,3713.7,3712.6,3.0]
[1733320014057,1.615,3713.7,3712.8,2.69336]
[1733320014237,0.1,3713.6,3712.8,2.69336]
[1733320014440,0.1,3713.4,3712.8,2.69336]
[1733320014969,0.1,3713.4,3712.6,3.0]
[1733320014970,0.1,3713.4,3712.6,3.54322224]
[1733320015177,0.1,3713.4,3712.7,0.67232336]
[1733320015344,0.1,3713.4,3712.7,2.69345]